[Event "*** Titled Tuesday Blitz"]
[Site "Chess.com"]
[Date "2019.06.04"]
[Round "6"]
[White "GMKrikor"]
[Black "PotapovaM"]
[Result "1-0"]
[WhiteElo "2704"]
[BlackElo "2509"]
[TimeControl "180+2"]
[EndTime "14:20:28 PDT"]
[Termination "GMKrikor won by resignation"]

1. Nf3 {[%clk 0:02:49]} 1... Nf6 {[%clk 0:03:00.6]} 2. g3 {[%clk 0:02:27.2]}
2... b6 {[%clk 0:02:53.9]} 3. Bg2 {[%clk 0:02:10]} 3... Bb7 {[%clk 0:02:54.9]}
4. O-O {[%clk 0:02:11.9]} 4... g6 {[%clk 0:02:55.9]} 5. b3 {[%clk 0:02:05.4]}
5... Bg7 {[%clk 0:02:55.4]} 6. Bb2 {[%clk 0:02:06.5]} 6... O-O {[%clk
0:02:57.1]} 7. c4 {[%clk 0:02:06.5]} 7... d6 {[%clk 0:02:53.2]} 8. d4 {[%clk
0:02:06.6]} 8... Nbd7 {[%clk 0:02:53.3]} 9. Nc3 {[%clk 0:02:07.4]} 9... Ne4
{[%clk 0:02:54.3]} 10. Nxe4 {[%clk 0:02:00.2]} 10... Bxe4 {[%clk 0:02:56.2]} 11.
Bh3 {[%clk 0:02:00.8]} 11... e6 {[%clk 0:02:39.2]} 12. Rc1 {[%clk 0:02:00.2]}
12... a5 {[%clk 0:02:36.9]} 13. Nd2 {[%clk 0:01:59.2]} 13... Bb7 {[%clk
0:02:35.9]} 14. e4 {[%clk 0:02:00.6]} 14... e5 {[%clk 0:02:13]} 15. d5 {[%clk
0:01:55]} 15... Nc5 {[%clk 0:02:13.7]} 16. Qc2 {[%clk 0:01:52.2]} 16... Bc8
{[%clk 0:02:14.7]} 17. Bxc8 {[%clk 0:01:51.7]} 17... Qxc8 {[%clk 0:02:16.6]} 18.
a3 {[%clk 0:01:52]} 18... Qh3 {[%clk 0:02:12.9]} 19. b4 {[%clk 0:01:49.3]} 19...
Nd7 {[%clk 0:02:03]} 20. Bc3 {[%clk 0:01:43.7]} 20... axb4 {[%clk 0:01:56.8]}
21. axb4 {[%clk 0:01:45.5]} 21... f5 {[%clk 0:01:49.6]} 22. Rfe1 {[%clk
0:01:33]} 22... f4 {[%clk 0:01:47.6]} 23. Qd3 {[%clk 0:01:33]} 23... Ra3 {[%clk
0:01:26.7]} 24. Qf1 {[%clk 0:01:29.9]} 24... Qh6 {[%clk 0:01:04.1]} 25. Qe2
{[%clk 0:01:20.6]} 25... Qh3 {[%clk 0:01:02.9]} 26. Qf1 {[%clk 0:01:02]} 26...
Qh6 {[%clk 0:01:03.3]} 27. Re2 {[%clk 0:01:02.8]} 27... Kh8 {[%clk 0:00:41.2]}
28. Rc2 {[%clk 0:00:57.4]} 28... Rfa8 {[%clk 0:00:34.6]} 29. Nb1 {[%clk
0:00:52.8]} 29... R3a4 {[%clk 0:00:28.4]} 30. h4 {[%clk 0:00:38.7]} 30... g5
{[%clk 0:00:27.9]} 31. Qh3 {[%clk 0:00:39.1]} 31... Nf6 {[%clk 0:00:28.2]} 32.
Qf5 {[%clk 0:00:26.2]} 32... gxh4 {[%clk 0:00:28.9]} 33. gxf4 {[%clk 0:00:27.6]}
33... Qxf4 {[%clk 0:00:20.6]} 34. Qxf4 {[%clk 0:00:28.3]} 34... exf4 {[%clk
0:00:22.5]} 35. f3 {[%clk 0:00:22.9]} 35... Nd7 {[%clk 0:00:21.8]} 36. Bxg7+
{[%clk 0:00:20.8]} 36... Kxg7 {[%clk 0:00:23.7]} 37. Nc3 {[%clk 0:00:22.3]}
37... Ra1+ {[%clk 0:00:21.8]} 38. Kg2 {[%clk 0:00:23.6]} 38... Ne5 {[%clk
0:00:23]} 39. Nb5 {[%clk 0:00:24.4]} 39... Kf6 {[%clk 0:00:21.5]} 40. Nd4 {[%clk
0:00:22]} 40... Rg8+ {[%clk 0:00:21.8]} 41. Kh2 {[%clk 0:00:18.9]} 41... Rgg1
{[%clk 0:00:18.4]} 42. Kh3 {[%clk 0:00:14.4]} 42... Rg3+ {[%clk 0:00:13.6]} 43.
Kh2 {[%clk 0:00:16]} 43... Rgg1 {[%clk 0:00:12.7]} 44. Kh3 {[%clk 0:00:16.9]}
44... Rg3+ {[%clk 0:00:13.6]} 45. Kh2 {[%clk 0:00:18.5]} 45... Nxf3+ {[%clk
0:00:10.2]} 46. Nxf3 {[%clk 0:00:19.9]} 46... Rxf3 {[%clk 0:00:12.1]} 47. e5+
{[%clk 0:00:18.1]} 47... dxe5 {[%clk 0:00:10.5]} 48. c5 {[%clk 0:00:19.8]} 48...
bxc5 {[%clk 0:00:11.5]} 49. bxc5 {[%clk 0:00:21.7]} 49... Rd1 {[%clk 0:00:11.3]}
50. d6 {[%clk 0:00:23.2]} 50... cxd6 {[%clk 0:00:11.9]} 51. c6 {[%clk
0:00:24.8]} 51... Rff1 {[%clk 0:00:10.4]} 52. Kh3 {[%clk 0:00:23]} 52... Rh1+
{[%clk 0:00:10.4]} 53. Rh2 {[%clk 0:00:23.6]} 53... Rhg1 {[%clk 0:00:06.4]} 54.
c7 {[%clk 0:00:19.7]} 54... Rd3+ {[%clk 0:00:04]} 55. Kxh4 {[%clk 0:00:21.1]}
55... Kf5 {[%clk 0:00:05.3]} 56. c8=Q+ {[%clk 0:00:21.4]} 1-0

[Event "*** Titled Tuesday Blitz"]
[Site "Chess.com"]
[Date "2019.06.04"]
[Round "6"]
[White "MatthewG-p4p"]
[Black "vovachesss"]
[Result "1-0"]
[WhiteElo "2789"]
[BlackElo "2616"]
[TimeControl "180+2"]
[EndTime "14:20:34 PDT"]
[Termination "MatthewG-p4p won by checkmate"]

1. Nf3 {[%clk 0:02:52.4]} 1... d5 {[%clk 0:02:51.4]} 2. b3 {[%clk 0:02:50.5]}
2... c5 {[%clk 0:02:49.5]} 3. Bb2 {[%clk 0:02:51.8]} 3... Nc6 {[%clk 0:02:51]}
4. e3 {[%clk 0:02:53.4]} 4... Bg4 {[%clk 0:02:52]} 5. d4 {[%clk 0:02:50.4]} 5...
a6 {[%clk 0:02:52]} 6. Be2 {[%clk 0:02:51.3]} 6... e6 {[%clk 0:02:53]} 7. O-O
{[%clk 0:02:52.1]} 7... Nf6 {[%clk 0:02:54.4]} 8. Nbd2 {[%clk 0:02:49.9]} 8...
Bd6 {[%clk 0:02:54.9]} 9. Ne5 {[%clk 0:02:51]} 9... Bxe2 {[%clk 0:02:55.6]} 10.
Qxe2 {[%clk 0:02:52.9]} 10... O-O {[%clk 0:02:55.9]} 11. Nxc6 {[%clk 0:02:49.4]}
11... bxc6 {[%clk 0:02:56.7]} 12. dxc5 {[%clk 0:02:51.3]} 12... Bxc5 {[%clk
0:02:57.5]} 13. c4 {[%clk 0:02:53.2]} 13... Qe7 {[%clk 0:02:57]} 14. Rfd1 {[%clk
0:02:51.8]} 14... Rfb8 {[%clk 0:02:54.4]} 15. Nf3 {[%clk 0:02:48.6]} 15... a5
{[%clk 0:02:44.3]} 16. Ne5 {[%clk 0:02:48.3]} 16... Rb6 {[%clk 0:02:40.6]} 17.
Qc2 {[%clk 0:02:32.3]} 17... a4 {[%clk 0:02:36]} 18. Nd3 {[%clk 0:02:19.3]}
18... Ba3 {[%clk 0:02:29.9]} 19. Bd4 {[%clk 0:02:07.4]} 19... Rba6 {[%clk
0:02:20.2]} 20. c5 {[%clk 0:02:00.8]} 20... Nd7 {[%clk 0:02:11.8]} 21. b4 {[%clk
0:01:55.7]} 21... e5 {[%clk 0:02:10.8]} 22. Bc3 {[%clk 0:01:56.7]} 22... Rb8
{[%clk 0:01:56.7]} 23. Rab1 {[%clk 0:01:57]} 23... Rb5 {[%clk 0:01:54.7]} 24.
Ba1 {[%clk 0:01:49.7]} 24... e4 {[%clk 0:01:14.8]} 25. Qc3 {[%clk 0:01:35.8]}
25... f6 {[%clk 0:01:13.1]} 26. Nf4 {[%clk 0:01:35.9]} 26... Bxb4 {[%clk
0:01:02.2]} 27. Rxb4 {[%clk 0:01:35.9]} 27... Rxc5 {[%clk 0:01:04.1]} 28. Qd2
{[%clk 0:01:25.6]} 28... a3 {[%clk 0:00:48.6]} 29. Bd4 {[%clk 0:01:21.4]} 29...
Rca5 {[%clk 0:00:43.8]} 30. Rb7 {[%clk 0:01:17.2]} 30... Qd6 {[%clk 0:00:41.1]}
31. Bc3 {[%clk 0:01:15.6]} 31... Ra4 {[%clk 0:00:38.6]} 32. Bb4 {[%clk
0:01:12.2]} 32... c5 {[%clk 0:00:34.2]} 33. Qxd5+ {[%clk 0:01:07.2]} 33... Qxd5
{[%clk 0:00:34.5]} 34. Rxd5 {[%clk 0:01:09.1]} 34... Rxb4 {[%clk 0:00:14.6]} 35.
Rbxd7 {[%clk 0:00:55.1]} 35... Rb1+ {[%clk 0:00:13]} 36. Rd1 {[%clk 0:00:56.2]}
36... Rab6 {[%clk 0:00:12.4]} 37. g4 {[%clk 0:00:35.4]} 37... Rxd1+ {[%clk
0:00:08.4]} 38. Rxd1 {[%clk 0:00:37.3]} 38... Rb2 {[%clk 0:00:09.5]} 39. Rd7
{[%clk 0:00:21.6]} 39... Rxa2 {[%clk 0:00:09.8]} 40. Ra7 {[%clk 0:00:23.2]}
40... Ra1+ {[%clk 0:00:10.9]} 41. Kg2 {[%clk 0:00:24.7]} 41... h6 {[%clk
0:00:04.9]} 42. Ne6 {[%clk 0:00:25.7]} 42... c4 {[%clk 0:00:05.8]} 43. Rxg7+
{[%clk 0:00:27]} 43... Kh8 {[%clk 0:00:06]} 44. Ra7 {[%clk 0:00:26.7]} 44... c3
{[%clk 0:00:06.9]} 45. Nd4 {[%clk 0:00:27.9]} 45... Ra2 {[%clk 0:00:06.2]} 46.
Rc7 {[%clk 0:00:24.4]} 46... c2 {[%clk 0:00:03.9]} 47. Rxc2 {[%clk 0:00:25.2]}
47... Ra1 {[%clk 0:00:04.5]} 48. Rc7 {[%clk 0:00:25.2]} 48... a2 {[%clk
0:00:05.4]} 49. Ra7 {[%clk 0:00:26.6]} 49... f5 {[%clk 0:00:05.6]} 50. gxf5
{[%clk 0:00:27.5]} 50... h5 {[%clk 0:00:07.1]} 51. f6 {[%clk 0:00:28.6]} 51...
Kg8 {[%clk 0:00:08.4]} 52. Nf5 {[%clk 0:00:28.3]} 52... h4 {[%clk 0:00:08.8]}
53. Nd4 {[%clk 0:00:14.4]} 53... h3+ {[%clk 0:00:09.7]} 54. Kxh3 {[%clk
0:00:15.7]} 54... Rg1 {[%clk 0:00:07.1]} 55. f7+ {[%clk 0:00:16.4]} 55... Kh7
{[%clk 0:00:06]} 56. f8=Q+ {[%clk 0:00:17.2]} 56... Kg6 {[%clk 0:00:07.9]} 57.
Qf5+ {[%clk 0:00:17.6]} 57... Kh6 {[%clk 0:00:08.8]} 58. Rh7# {[%clk 0:00:19.5]}
1-0

[Event "*** Titled Tuesday Blitz"]
[Site "Chess.com"]
[Date "2019.06.04"]
[Round "6"]
[White "Hikaru"]
[Black "Angry_Twin"]
[Result "1-0"]
[WhiteElo "3202"]
[BlackElo "2804"]
[TimeControl "180+2"]
[EndTime "14:20:35 PDT"]
[Termination "Hikaru won on time"]

1. Nf3 {[%clk 0:03:01.9]} 1... Nf6 {[%clk 0:03:01.2]} 2. b3 {[%clk 0:02:57.1]}
2... g6 {[%clk 0:03:02.2]} 3. Bb2 {[%clk 0:02:59]} 3... Bg7 {[%clk 0:03:03.7]}
4. d4 {[%clk 0:02:59.2]} 4... d5 {[%clk 0:03:03.2]} 5. e3 {[%clk 0:03:00.3]}
5... O-O {[%clk 0:03:04.3]} 6. c4 {[%clk 0:02:59.8]} 6... c6 {[%clk 0:03:05.4]}
7. Bd3 {[%clk 0:03:00.1]} 7... Bg4 {[%clk 0:03:04.9]} 8. Nbd2 {[%clk 0:03:00.4]}
8... Nbd7 {[%clk 0:03:06]} 9. h3 {[%clk 0:03:01.4]} 9... Bxf3 {[%clk 0:03:06]}
10. Nxf3 {[%clk 0:03:03.3]} 10... a6 {[%clk 0:03:04.3]} 11. Qc2 {[%clk
0:03:04.5]} 11... b5 {[%clk 0:03:05.3]} 12. O-O {[%clk 0:03:05.8]} 12... Rb8
{[%clk 0:03:05.7]} 13. Rfc1 {[%clk 0:03:04.6]} 13... Qb6 {[%clk 0:03:01.4]} 14.
Rab1 {[%clk 0:03:04]} 14... Qb7 {[%clk 0:02:54.6]} 15. a4 {[%clk 0:03:04.7]}
15... Rfc8 {[%clk 0:02:54]} 16. axb5 {[%clk 0:03:02]} 16... axb5 {[%clk
0:02:53.6]} 17. cxb5 {[%clk 0:02:49.7]} 17... cxb5 {[%clk 0:02:54.1]} 18. Qe2
{[%clk 0:02:51.1]} 18... Rxc1+ {[%clk 0:02:47.5]} 19. Rxc1 {[%clk 0:02:53]}
19... e6 {[%clk 0:02:46]} 20. Bc3 {[%clk 0:02:47.7]} 20... Bf8 {[%clk
0:02:45.5]} 21. Ba5 {[%clk 0:02:44.8]} 21... Bd6 {[%clk 0:02:45.8]} 22. b4
{[%clk 0:02:42.4]} 22... Ne4 {[%clk 0:02:38.2]} 23. Qc2 {[%clk 0:02:36.1]} 23...
Bf8 {[%clk 0:02:24.7]} 24. Qb1 {[%clk 0:02:21.2]} 24... Bd6 {[%clk 0:02:07.6]}
25. Rc2 {[%clk 0:02:15.5]} 25... Ndf6 {[%clk 0:01:32.3]} 26. Ne5 {[%clk
0:02:07.7]} 26... Rc8 {[%clk 0:01:01.5]} 27. f3 {[%clk 0:01:47.7]} 27... Rxc2
{[%clk 0:00:48.3]} 28. Qxc2 {[%clk 0:01:49.6]} 28... Ng3 {[%clk 0:00:46.4]} 29.
Kf2 {[%clk 0:01:10.9]} 29... Nf5 {[%clk 0:00:42.7]} 30. Qc6 {[%clk 0:01:11.8]}
30... Qb8 {[%clk 0:00:27.7]} 31. f4 {[%clk 0:01:13.1]} 31... Bxe5 {[%clk
0:00:21.2]} 32. fxe5 {[%clk 0:01:12.7]} 32... Ne4+ {[%clk 0:00:22.5]} 33. Ke2
{[%clk 0:00:53.3]} 33... Nfg3+ {[%clk 0:00:23.5]} 34. Ke1 {[%clk 0:00:50.2]}
34... Qf8 {[%clk 0:00:21.6]} 35. Bxb5 {[%clk 0:00:37.5]} 35... Qh6 {[%clk
0:00:22.6]} 36. Qc1 {[%clk 0:00:38.9]} 36... Qh4 {[%clk 0:00:23.2]} 37. Kd1
{[%clk 0:00:40]} 37... Qh5+ {[%clk 0:00:24.4]} 38. Kc2 {[%clk 0:00:41.1]} 38...
Qf5 {[%clk 0:00:25.3]} 39. Kb3 {[%clk 0:00:38.9]} 39... Qf2 {[%clk 0:00:26.4]}
40. Bd3 {[%clk 0:00:35.9]} 40... Nd2+ {[%clk 0:00:27.5]} 41. Ka4 {[%clk
0:00:37.2]} 41... Qxe3 {[%clk 0:00:27.6]} 42. Qc2 {[%clk 0:00:31.1]} 42... Nge4
{[%clk 0:00:23.6]} 43. Bb6 {[%clk 0:00:31.1]} 43... Qe1 {[%clk 0:00:23.1]} 44.
Kb5 {[%clk 0:00:25.6]} 44... Qa1 {[%clk 0:00:23.9]} 45. Bxe4 {[%clk 0:00:19.8]}
45... Nxe4 {[%clk 0:00:24.7]} 46. Kc6 {[%clk 0:00:21.3]} 46... Qa8+ {[%clk
0:00:21.4]} 47. Kc7 {[%clk 0:00:22.7]} 47... Qa6 {[%clk 0:00:19.2]} 48. Qc6
{[%clk 0:00:23]} 48... Kg7 {[%clk 0:00:20.7]} 49. b5 {[%clk 0:00:24.2]} 49...
Qa4 {[%clk 0:00:20.2]} 50. Bc5 {[%clk 0:00:25.6]} 50... Nc3 {[%clk 0:00:15.2]}
51. b6 {[%clk 0:00:26.5]} 51... Nb5+ {[%clk 0:00:17.1]} 52. Kd8 {[%clk
0:00:27.7]} 52... Qa5 {[%clk 0:00:17.6]} 53. Ke8 {[%clk 0:00:29]} 53... Qa6
{[%clk 0:00:17.5]} 54. Bf8+ {[%clk 0:00:27.9]} 54... Kg8 {[%clk 0:00:18.3]} 55.
Bh6 {[%clk 0:00:28.1]} 55... Nxd4 {[%clk 0:00:14.2]} 56. Qc7 {[%clk 0:00:29.6]}
56... Qb5+ {[%clk 0:00:14.7]} 57. Ke7 {[%clk 0:00:24.2]} 57... Nc6+ {[%clk
0:00:14.5]} 58. Kd6 {[%clk 0:00:22.3]} 1-0

[Event "*** Titled Tuesday Blitz"]
[Site "Chess.com"]
[Date "2019.06.04"]
[Round "6"]
[White "Rumpel-VK"]
[Black "SergeiAza"]
[Result "1/2-1/2"]
[WhiteElo "2569"]
[BlackElo "2771"]
[TimeControl "180+2"]
[EndTime "14:20:44 PDT"]
[Termination "Game drawn by repetition"]

1. d4 {[%clk 0:03:01.9]} 1... Nf6 {[%clk 0:02:56.4]} 2. Nf3 {[%clk 0:03:00.9]}
2... e6 {[%clk 0:02:53.3]} 3. c4 {[%clk 0:03:01]} 3... d5 {[%clk 0:02:53.4]} 4.
Qc2 {[%clk 0:03:01.5]} 4... Be7 {[%clk 0:02:52.3]} 5. Bg5 {[%clk 0:03:02]} 5...
h6 {[%clk 0:02:48.4]} 6. Bf4 {[%clk 0:03:02.3]} 6... O-O {[%clk 0:02:48.4]} 7.
Nc3 {[%clk 0:03:02.9]} 7... c5 {[%clk 0:02:29.2]} 8. cxd5 {[%clk 0:02:58.1]}
8... cxd4 {[%clk 0:02:19.3]} 9. Nxd4 {[%clk 0:02:57.1]} 9... Nxd5 {[%clk
0:02:18.1]} 10. Nxd5 {[%clk 0:02:44.1]} 10... Qxd5 {[%clk 0:02:18.7]} 11. Nf3
{[%clk 0:02:23.5]} 11... Nc6 {[%clk 0:02:15]} 12. a3 {[%clk 0:02:21.3]} 12... e5
{[%clk 0:02:10.8]} 13. e4 {[%clk 0:02:17.5]} 13... Qa5+ {[%clk 0:01:56.4]} 14.
Bd2 {[%clk 0:02:18.1]} 14... Qb6 {[%clk 0:01:56.4]} 15. Be3 {[%clk 0:02:13.9]}
15... Nd4 {[%clk 0:01:48.9]} 16. Bxd4 {[%clk 0:02:09.9]} 16... exd4 {[%clk
0:01:49.5]} 17. Bd3 {[%clk 0:02:08.3]} 17... Bg4 {[%clk 0:01:42.3]} 18. Nd2
{[%clk 0:01:46.6]} 18... Rac8 {[%clk 0:01:39.9]} 19. Nc4 {[%clk 0:01:46.6]}
19... Qg6 {[%clk 0:01:22.1]} 20. Qb3 {[%clk 0:01:17.4]} 20... Be6 {[%clk
0:01:05.9]} 21. O-O {[%clk 0:01:08.8]} 21... Bh3 {[%clk 0:00:42.9]} 22. g3
{[%clk 0:01:09.6]} 22... Bxf1 {[%clk 0:00:43.5]} 23. Rxf1 {[%clk 0:01:10.2]}
23... b6 {[%clk 0:00:44.7]} 24. a4 {[%clk 0:01:09.6]} 24... Qc6 {[%clk
0:00:42.6]} 25. e5 {[%clk 0:00:59.8]} 25... Qc5 {[%clk 0:00:41.2]} 26. Qd1
{[%clk 0:00:55.5]} 26... Rfe8 {[%clk 0:00:39.3]} 27. Qe2 {[%clk 0:00:55.2]}
27... Bf8 {[%clk 0:00:39.9]} 28. h4 {[%clk 0:00:51.2]} 28... Qd5 {[%clk
0:00:35.5]} 29. b3 {[%clk 0:00:47.5]} 29... Qe6 {[%clk 0:00:27.5]} 30. Qe4
{[%clk 0:00:38]} 30... g6 {[%clk 0:00:19.3]} 31. h5 {[%clk 0:00:35.3]} 31... f5
{[%clk 0:00:15.5]} 32. Qf3 {[%clk 0:00:28.4]} 32... Bg7 {[%clk 0:00:14.2]} 33.
hxg6 {[%clk 0:00:28.6]} 33... Rf8 {[%clk 0:00:15.5]} 34. Nd6 {[%clk 0:00:21.8]}
34... Rc3 {[%clk 0:00:16.2]} 35. Bxf5 {[%clk 0:00:14]} 35... Qxd6 {[%clk
0:00:12.7]} 36. Qxc3 {[%clk 0:00:12.1]} 36... Qd5 {[%clk 0:00:13.7]} 37. Qd3
{[%clk 0:00:08.9]} 37... Qxe5 {[%clk 0:00:14.3]} 38. Be4 {[%clk 0:00:08.1]}
38... Kh8 {[%clk 0:00:14.7]} 39. Bg2 {[%clk 0:00:08.3]} 39... Qc5 {[%clk
0:00:15.4]} 40. Re1 {[%clk 0:00:08.6]} 40... Qc3 {[%clk 0:00:16.5]} 41. Rd1
{[%clk 0:00:08.7]} 41... Qxd3 {[%clk 0:00:14.6]} 42. Rxd3 {[%clk 0:00:09.5]}
42... Rc8 {[%clk 0:00:16.2]} 43. Bd5 {[%clk 0:00:08.7]} 43... Bf6 {[%clk
0:00:15.8]} 44. Bc4 {[%clk 0:00:09]} 44... Kg7 {[%clk 0:00:17.3]} 45. Bf7 {[%clk
0:00:08.8]} 45... Rc3 {[%clk 0:00:18]} 46. Rd2 {[%clk 0:00:08.8]} 46... Be5
{[%clk 0:00:14.7]} 47. Kf1 {[%clk 0:00:09.4]} 47... h5 {[%clk 0:00:15.6]} 48.
Ke2 {[%clk 0:00:10]} 48... Bf6 {[%clk 0:00:16.8]} 49. Rd3 {[%clk 0:00:10.4]}
49... Rc2+ {[%clk 0:00:17.6]} 50. Kf3 {[%clk 0:00:11.2]} 50... a5 {[%clk
0:00:19.2]} 51. Kg2 {[%clk 0:00:10.3]} 51... Be5 {[%clk 0:00:18.3]} 52. Kg1
{[%clk 0:00:10.5]} 52... Bf6 {[%clk 0:00:19.7]} 53. Kg2 {[%clk 0:00:11]} 53...
Rc3 {[%clk 0:00:21.1]} 54. Rd2 {[%clk 0:00:10.2]} 54... Rc1 {[%clk 0:00:20.6]}
55. Kf3 {[%clk 0:00:09]} 55... Rc3+ {[%clk 0:00:21.4]} 56. Ke4 {[%clk
0:00:10.1]} 56... Rc1 {[%clk 0:00:21.2]} 57. Rd3 {[%clk 0:00:10.2]} 57... Rc5
{[%clk 0:00:21.8]} 58. f4 {[%clk 0:00:11]} 58... Rc1 {[%clk 0:00:20.9]} 59. Kf3
{[%clk 0:00:10]} 59... Rc3 {[%clk 0:00:21.2]} 60. Ke4 {[%clk 0:00:10.6]} 60...
Rc1 {[%clk 0:00:21.8]} 61. Kf3 {[%clk 0:00:09.5]} 61... Rc3 {[%clk 0:00:22.1]}
62. Ke4 {[%clk 0:00:10.1]} 62... Rc1 {[%clk 0:00:23]} 1/2-1/2

[Event "*** Titled Tuesday Blitz"]
[Site "Chess.com"]
[Date "2019.06.04"]
[Round "6"]
[White "Zubrrr"]
[Black "iturrizaga"]
[Result "0-1"]
[WhiteElo "2714"]
[BlackElo "2931"]
[TimeControl "180+2"]
[EndTime "14:20:49 PDT"]
[Termination "iturrizaga won by resignation"]

1. c4 {[%clk 0:03:01.9]} 1... b6 {[%clk 0:03:00.3]} 2. Nc3 {[%clk 0:03:02.1]}
2... Bb7 {[%clk 0:03:02.2]} 3. e4 {[%clk 0:03:03.5]} 3... c5 {[%clk 0:03:02.5]}
4. g3 {[%clk 0:03:02.7]} 4... g6 {[%clk 0:03:03]} 5. Bg2 {[%clk 0:03:03.9]} 5...
Bg7 {[%clk 0:03:04.3]} 6. f4 {[%clk 0:03:03.6]} 6... d6 {[%clk 0:03:03.2]} 7. d3
{[%clk 0:03:02.9]} 7... Qd7 {[%clk 0:03:03.9]} 8. Nf3 {[%clk 0:03:03.8]} 8...
Nc6 {[%clk 0:03:04.4]} 9. O-O {[%clk 0:03:04]} 9... Nh6 {[%clk 0:03:04.5]} 10.
Bd2 {[%clk 0:02:54.8]} 10... O-O {[%clk 0:03:00.3]} 11. Qc2 {[%clk 0:01:26.4]}
11... f5 {[%clk 0:02:52.2]} 12. Rae1 {[%clk 0:01:26.2]} 12... Rae8 {[%clk
0:02:49.9]} 13. Kh1 {[%clk 0:01:13.8]} 13... e6 {[%clk 0:02:49]} 14. a3 {[%clk
0:01:14]} 14... Ng4 {[%clk 0:02:40.1]} 15. Qb1 {[%clk 0:01:06.2]} 15... a5
{[%clk 0:02:38.1]} 16. Nb5 {[%clk 0:01:03.7]} 16... Nf6 {[%clk 0:02:30.9]} 17.
b4 {[%clk 0:00:55.4]} 17... axb4 {[%clk 0:02:29.7]} 18. axb4 {[%clk 0:00:57.3]}
18... fxe4 {[%clk 0:02:24.2]} 19. dxe4 {[%clk 0:00:56.9]} 19... e5 {[%clk
0:02:24.1]} 20. bxc5 {[%clk 0:00:42.5]} 20... bxc5 {[%clk 0:02:26]} 21. Nxd6
{[%clk 0:00:07.4]} 21... Qxd6 {[%clk 0:02:09.8]} 22. Qxb7 {[%clk 0:00:08.2]}
22... Nh5 {[%clk 0:02:11.3]} 23. Qb1 {[%clk 0:00:03.7]} 23... exf4 {[%clk
0:02:11]} 24. g4 {[%clk 0:00:05]} 24... Nf6 {[%clk 0:02:01.3]} 25. e5 {[%clk
0:00:06.1]} 25... Nxe5 {[%clk 0:02:02.7]} 26. Bxf4 {[%clk 0:00:06.8]} 26...
Nfxg4 {[%clk 0:02:04.1]} 27. Bg3 {[%clk 0:00:07.6]} 27... Qd3 {[%clk 0:01:19.4]}
28. Nxe5 {[%clk 0:00:05.3]} 28... Rxf1+ {[%clk 0:00:16.4]} 29. Rxf1 {[%clk
0:00:04.7]} 29... Nxe5 {[%clk 0:00:17.2]} 30. Bd5+ {[%clk 0:00:04.8]} 30... Kh8
{[%clk 0:00:18.3]} 31. Bxe5 {[%clk 0:00:05.9]} 31... Qxb1 {[%clk 0:00:16.7]} 32.
Bxg7+ {[%clk 0:00:06.9]} 32... Kxg7 {[%clk 0:00:18.6]} 33. Rxb1 {[%clk
0:00:08.8]} 33... Kf6 {[%clk 0:00:19.2]} 34. Rb7 {[%clk 0:00:09.6]} 34... h5
{[%clk 0:00:19.9]} 35. Rc7 {[%clk 0:00:10.6]} 35... Kg5 {[%clk 0:00:19.3]} 36.
Rxc5 {[%clk 0:00:11.4]} 36... Kh4 {[%clk 0:00:20.7]} 37. Bf7 {[%clk 0:00:10.7]}
37... Re1+ {[%clk 0:00:18.2]} 38. Kg2 {[%clk 0:00:11.7]} 38... g5 {[%clk
0:00:20.1]} 39. Rf5 {[%clk 0:00:09.4]} 39... Rc1 {[%clk 0:00:18]} 40. Rf2 {[%clk
0:00:09.7]} 40... Kg4 {[%clk 0:00:17.2]} 41. Be6+ {[%clk 0:00:10.3]} 41... Kh4
{[%clk 0:00:18.6]} 42. Bd5 {[%clk 0:00:11.6]} 42... Rc3 {[%clk 0:00:18.5]} 43.
Re2 {[%clk 0:00:11.7]} 43... g4 {[%clk 0:00:18.8]} 44. Bf7 {[%clk 0:00:12.5]}
44... Kg5 {[%clk 0:00:19.3]} 45. Bd5 {[%clk 0:00:12.2]} 45... h4 {[%clk
0:00:19.3]} 46. Kf2 {[%clk 0:00:12.1]} 46... Kf4 {[%clk 0:00:19.4]} 47. Re4+
{[%clk 0:00:12.6]} 47... Kf5 {[%clk 0:00:20.8]} 48. Re3 {[%clk 0:00:13.1]} 48...
Rc2+ {[%clk 0:00:21.6]} 49. Kg1 {[%clk 0:00:13.4]} 49... Kf4 {[%clk 0:00:22]}
50. Re4+ {[%clk 0:00:14.4]} 50... Kf5 {[%clk 0:00:20.4]} 51. Re1 {[%clk
0:00:15.6]} 51... Rc3 {[%clk 0:00:21.4]} 52. Rf1+ {[%clk 0:00:15.7]} 52... Kg5
{[%clk 0:00:22.7]} 53. Kg2 {[%clk 0:00:16.3]} 53... Rc2+ {[%clk 0:00:22.5]} 54.
Rf2 {[%clk 0:00:17.3]} 54... Rc1 {[%clk 0:00:23.6]} 55. Be6 {[%clk 0:00:17.3]}
55... h3+ {[%clk 0:00:23.7]} 0-1